bitfinex-derivatives/quotes_SOLF0:USTF0_20250523
["timestamp","ask_amount","ask_price","bid_price","bid_amount"]
[1748001593878,1.9454,177.93,177.65,16.33435347]
[1748001594082,1.9454,177.93,177.62,1.919]
[1748001594268,1.9454,177.93,177.65,16.33435347]
[1748001594579,0.03779094,177.81,177.77,0.04134194]
[1748001594773,0.03632578,177.81,177.77,0.04084103]
[1748001596382,1.9452,177.96,177.77,0.04084103]
[1748001596579,16.33435347,177.92,177.62,488.159]
[1748001596777,16.33435347,177.92,177.64,16.33435347]
[1748001596976,1.8718,177.95,177.64,16.33435347]
[1748001597480,0.03584103,177.81,177.78,0.03915611]
[1748001597679,1.8718,177.95,177.78,0.03929268]
[1748001597880,1.8718,177.95,177.7,16.33435347]
[1748001598683,0.04004077,177.84,177.81,0.04109146]
[1748001599079,168.04009847,179.11,177.81,5.66109146]
[1748001599288,5.8467,178.07,177.77,5.8848]
[1748001599489,5.8467,178.07,177.82,62.0]
[1748001599987,0.03668317,177.94,177.91,0.03584106]
[1748001600485,4.71450272,178.08,177.92,16.33435347]
[1748001600676,4.71450272,178.08,177.93,5.9115]
[1748001601495,0.0420068,178.02,177.99,0.03727417]
[1748001601682,4.71450272,178.08,177.99,0.03727417]
[1748001601985,3.9215,178.16,177.99,0.03727417]
[1748001602186,3.9215,178.16,177.93,4.0066]
[1748001602890,0.04019438,178.06,178.03,0.04082139]
[1748001603092,67.74888845,178.29,178.03,0.04082139]
[1748001603294,3.9653,178.28,178.04,78.33435347]
[1748001603494,3.9653,178.28,178.05,3.8476]
[1748001603882,3.9653,178.28,178.05,1.8398]
[1748001604192,0.03873055,178.18,178.15,0.03612387]
[1748001604393,0.04310648,178.18,178.15,0.03631431]
[1748001604703,5.66310648,178.18,177.93,485.76]
[1748001604896,3.9359,178.17,177.95,1.8398]
[1748001605300,1.9546,178.16,177.95,1.8398]
[1748001605497,1.9546,178.16,177.85,16.33435347]
[1748001605498,18.28895347,178.16,177.85,16.33435347]
[1748001605696,0.03626345,178.02,177.99,0.0432842]
[1748001605895,0.04136294,178.02,177.99,0.04256853]
[1748001606294,5.66136294,178.02,177.99,0.04256853]
[1748001606597,5.66136294,178.02,177.86,1.8398]
[1748001606598,2.0086,178.01,177.82,5.6236]
[1748001606791,2.0086,178.01,177.77,63.9364]
[1748001607191,1.9938,178.0,177.77,63.9364]
[1748001607398,0.03607533,177.9,177.87,0.03829411]
[1748001607599,0.03840686,177.9,177.87,0.03648475]
[1748001608298,5.65840686,177.9,177.62,485.58]
[1748001608494,501.91435347,177.99,177.61,3.8236]
[1748001608796,16.33435347,177.93,177.61,1.9364]
[1748001608993,16.33435347,177.9,177.57,485.58]
[1748001609390,0.04325232,177.75,177.72,6.482e-05]
[1748001609603,485.6,177.8,177.54,16.33435347]
[1748001609806,485.6,177.8,177.53,16.33435347]
[1748001610211,485.6,177.8,177.51,1.9021]
[1748001610500,0.03979207,177.67,177.64,0.04250992]
[1748001610695,0.0355219,177.67,177.64,0.04158876]
[1748001610895,5.6287,177.66,177.64,0.04158876]
[1748001611094,0.0355219,177.67,177.64,0.04158876]
[1748001611898,0.0355219,177.67,177.52,62.0]
[1748001612099,1.962,177.79,177.41,18.32505347]
[1748001612303,16.33435347,177.75,177.41,18.32505347]
[1748001612509,16.33435347,177.75,177.41,1.9907]
[1748001612702,16.33435347,177.71,177.41,1.9907]
[1748001612902,16.33435347,177.64,177.41,1.9907]
[1748001613102,16.33435347,177.64,177.37,485.84]
[1748001613103,3.965,177.63,177.37,485.84]
[1748001613299,3.965,177.63,177.24,485.84]
[1748001613496,1.8901,177.62,177.27,16.33435347]
[1748001613997,0.04014471,177.46,177.33,16.33435347]
[1748001614201,16.33435347,177.69,177.34,1.9907]
[1748001614401,16.33435347,177.67,177.35,1.9496]
[1748001614704,3.8521,177.68,177.37,16.33435347]
[1748001614911,3.8521,177.68,177.38,486.2]
[1748001615110,3.8521,177.68,177.51,0.04260912]
[1748001615111,0.03607562,177.55,177.51,0.04260912]
[1748001615312,0.04176657,177.55,177.51,0.03714706]
[1748001618217,5.6329,177.53,177.51,0.03714706]
[1748001618513,5.68176657,177.55,177.38,486.2]
[1748001618717,16.33435347,177.61,177.38,486.2]
[1748001619017,3.8521,177.68,177.38,486.2]
[1748001619211,5.6336,177.51,177.38,486.2]
[1748001619515,0.03645478,177.46,177.43,0.03707705]
[1748001619711,0.04008045,177.46,177.43,0.04000088]
[1748001620300,5.6347,177.48,177.43,0.04000088]
[1748001620501,16.33435347,177.62,177.39,5.6373]
[1748001620702,1.9675,177.61,177.31,16.33435347]
[1748001620906,1.9675,177.61,177.41,5.6366]
[1748001621102,1.9675,177.61,177.31,16.33435347]
[1748001621309,0.0366345,177.48,177.47,5.6348]
[1748001621514,0.03798663,177.49,177.46,0.03893884]
[1748001621718,0.03922314,177.49,177.46,0.03547125]
[1748001621909,1.9675,177.61,177.5,5.6336]
[1748001622110,1.9675,177.61,177.43,486.52]
[1748001622515,1.9675,177.61,177.38,1.9207]
[1748001622818,1.9675,177.61,177.39,78.33435347]
[1748001623008,0.03733377,177.51,177.48,0.03654223]
[1748001623205,0.03636197,177.51,177.48,0.03935296]
[1748001623712,4.71450272,177.75,177.48,492.19935296]
[1748001623909,1.9959,177.74,177.49,1.9296]
[1748001624103,1.9959,177.74,177.61,5.6302]
[1748001624308,1.9959,177.74,177.49,1.9296]
[1748001624714,0.03975217,177.62,177.59,0.04122598]
[1748001624914,0.03711575,177.62,177.59,0.03563924]
[1748001625616,0.03711575,177.62,177.39,16.33435347]
[1748001625812,16.33435347,177.67,177.38,488.5007]
[1748001626212,5.6314,177.58,177.41,62.0]
[1748001626514,16.33435347,177.67,177.41,62.0]
[1748001626917,0.03935636,177.56,177.52,0.04182289]
[1748001627118,0.04016038,177.56,177.38,488.5007]
[1748001627314,16.33435347,177.59,177.39,5.6373]
[1748001627625,1.9288,177.58,177.38,486.58]
[1748001627807,1.9288,177.58,177.27,1.908]
[1748001628008,16.33435347,177.53,177.26,488.6193]
[1748001628218,5.6373,177.39,177.38,4.236e-05]
[1748001628412,486.62,177.54,177.18,1.908]
[1748001628413,16.33435347,177.47,177.18,1.908]
[1748001628606,486.62,177.54,177.15,486.62]
[1748001628607,3.8498,177.4,177.15,486.62]
[1748001628822,3.8498,177.4,177.16,3.9109]
[1748001629216,16.33435347,177.39,177.11,1.9993]
[1748001629519,5.6409,177.28,177.11,1.9993]
[1748001629917,3.8498,177.4,177.11,1.9993]
[1748001630313,5.6421,177.24,177.11,5.646]
[1748001630713,5.6421,177.24,177.07,2.0029]
[1748001630714,3.8498,177.4,177.16,0.03726754]
[1748001630907,0.03695856,177.19,177.16,0.03726754]
[1748001631113,6.19114479,177.39,177.03,0.98223232]
[1748001631419,0.0404421,177.19,177.16,0.03775851]
[1748001631620,6.19114479,177.39,177.06,497.54318655]
[1748001631821,0.03831346,177.19,177.16,0.03969782]
[1748001632023,6.19114479,177.39,177.08,16.33435347]
[1748001632214,16.33435347,177.35,177.16,0.0368826]
[1748001632413,16.33435347,177.37,177.07,4.0164]
[1748001632618,5.6425,177.23,177.11,5.6461]
[1748001632920,5.6425,177.23,177.07,4.0164]
[1748001632921,6.19114479,177.39,177.07,4.0164]
[1748001633115,16.33435347,177.36,177.08,62.0]
[1748001633310,5.642,177.25,177.08,62.0]
[1748001633515,0.038055,177.25,177.21,0.03662929]
[1748001633711,5.6425,177.23,177.12,5.6457]
[1748001633912,2.0171,177.39,177.06,497.54318655]
[1748001634116,16.33435347,177.34,177.06,497.54318655]
[1748001634311,16.33435347,177.34,177.13,5.6454]
[1748001634525,2.0171,177.39,177.13,5.6454]
[1748001634824,16.33435347,177.35,177.06,497.54318655]
[1748001635016,0.03809756,177.28,177.06,497.54318655]
[1748001635215,16.33435347,177.32,177.06,497.54318655]
[1748001635415,16.33435347,177.25,177.06,10.68318655]
[1748001635614,5.7206,177.24,177.06,10.68318655]
[1748001635815,5.6451,177.15,177.06,10.68318655]
[1748001636016,5.7206,177.24,177.06,10.68318655]
[1748001636216,22.05495347,177.24,177.06,10.68318655]
[1748001636425,0.04207788,177.17,177.13,0.03701577]
[1748001636823,5.6457,177.13,177.06,10.68318655]
[1748001637019,5.7206,177.24,177.08,0.03875282]
[1748001637220,0.0405512,177.11,177.06,10.68318655]
[1748001637416,5.7206,177.24,177.06,10.68318655]
[1748001637621,5.7206,177.24,177.14,0.03943096]
[1748001637921,5.7206,177.24,177.13,0.04001039]
[1748001638136,0.04167874,177.21,177.17,0.03642291]
[1748001638418,0.04167874,177.21,177.17,3.717e-05]
[1748001638419,5.6437,177.19,177.17,3.717e-05]
[1748001639012,11.2837,177.19,177.17,3.717e-05]
[1748001639422,5.6437,177.19,177.17,3.717e-05]
[1748001639818,11.2837,177.19,177.17,3.717e-05]
[1748001640026,5.6437,177.19,177.17,3.717e-05]
[1748001640229,11.2837,177.19,177.17,3.717e-05]
[1748001640728,5.6473,177.08,177.06,10.68318655]
[1748001641023,15.60855247,177.18,177.06,8.655e-05]
[1748001641226,5.6475,177.07,177.06,8.655e-05]
[1748001641531,15.60855247,177.07,176.76,15.60855247]
[1748001641729,5.8117,177.06,176.77,3.9177]
[1748001642126,15.60855247,177.02,176.77,3.9177]
[1748001642324,5.8117,177.06,176.77,3.9177]
[1748001642325,15.60855247,177.01,176.77,3.9177]
[1748001642632,15.60855247,177.01,176.81,0.98359266]
[1748001642817,0.0371601,176.91,176.87,0.04152428]
[1748001643018,5.8117,177.06,176.75,1.9991]
[1748001643330,5.6534,176.89,176.87,0.03846038]
[1748001643526,0.04262394,176.9,176.86,0.04046924]
[1748001643727,5.8117,177.06,176.64,15.60855247]
[1748001643728,5.655,176.84,176.64,15.60855247]
[1748001644026,15.60855247,176.96,176.72,0.04067129]
[1748001644233,487.68,176.97,176.7,1.8839]
[1748001644531,15.60855247,176.96,176.7,1.8839]
[1748001644828,15.60855247,176.95,176.7,1.8839]
[1748001645031,17.46515247,176.95,176.7,1.8839]
[1748001645329,5.6554,176.82,176.81,1.392e-05]
[1748001645826,15.60855247,176.91,176.7,1.8839]
[1748001646023,3.8914,176.93,176.7,1.8839]
[1748001646218,3.8914,176.93,176.65,1.8975]
[1748001646432,15.64781926,176.83,176.6,3.8903]
[1748001646621,15.64781926,176.83,176.59,0.98456664]
[1748001646622,489.9977,176.82,176.57,5.6634]
[1748001646822,489.9977,176.82,176.5,67.8865]
[1748001647219,5.6597,176.69,176.53,15.60855247]
[1748001647424,489.9977,176.82,176.5,67.8865]
[1748001647734,489.9977,176.82,176.59,0.02019955]
[1748001647932,15.60855247,176.77,176.5,62.0]
[1748001648131,489.9977,176.82,176.51,5.977]
[1748001648320,1.9565,176.76,176.51,5.977]
[1748001648525,2.0438,176.75,176.51,5.977]
[1748001648831,489.9977,176.82,176.51,494.297]
[1748001648832,2.0377,176.82,176.51,494.297]
[1748001649025,2.0377,176.82,176.61,0.04030273]
[1748001649224,15.60855247,176.8,176.54,5.6643]
[1748001649419,2.0377,176.82,176.51,509.90555247]
[1748001649622,2.0377,176.82,176.51,494.297]
[1748001650124,0.03841027,176.68,176.65,0.04038996]
[1748001650428,2.0377,176.82,176.51,494.297]
[1748001650624,15.60855247,176.81,176.51,494.297]
[1748001650933,0.03668119,176.68,176.65,0.03912948]
[1748001651326,15.60855247,176.79,176.51,488.32]
[1748001651527,0.04053454,176.68,176.46,5.7455]
[1748001651831,488.54,176.8,176.54,5.6642]
[1748001652027,488.54,176.8,176.47,62.0]
[1748001652542,15.60855247,176.71,176.47,62.0]
[1748001652733,0.03869667,176.65,176.62,0.03643815]
[1748001652926,488.54,176.8,176.48,3.8288]
[1748001652927,3.8247,176.75,176.49,1.9786]
[1748001653151,0.03902021,176.65,176.62,0.03833036]
[1748001653634,0.03601532,176.65,176.62,0.04151984]
[1748001653936,0.03601532,176.65,176.35,488.54]
[1748001654128,0.03601532,176.65,176.36,5.8966]
[1748001654325,2.0234,176.69,175.96,903.0]
[1748001654326,488.78,176.67,176.15,11.3536]
[1748001654528,15.60855247,176.6,176.37,5.6698]
[1748001654835,3.8147,176.59,176.31,3.856]
[1748001655131,5.6668,176.47,176.45,8.655e-05]
[1748001655729,11.3268,176.47,176.45,8.655e-05]
[1748001656325,5.6686,176.41,176.24,1.8975]
[1748001656649,0.037404,176.37,176.24,1.8975]
[1748001656843,1.9865,176.53,176.24,1.8975]
[1748001657140,15.60855247,176.49,176.24,1.8975]
[1748001657329,1.9865,176.53,176.27,5.6729]
[1748001657529,15.60855247,176.48,176.19,3.979]
[1748001657741,1.9865,176.53,176.28,5.6726]
[1748001657934,0.04247315,176.4,176.37,0.03849318]
[1748001658242,0.03974194,176.4,176.37,0.03590773]
[1748001658431,5.6693,176.39,176.37,0.03590773]
[1748001658627,0.03974194,176.4,176.22,15.60855247]
[1748001658833,1.9865,176.53,176.23,504.76855247]
[1748001659038,15.60855247,176.62,176.24,1.991]
[1748001659350,15.60855247,176.6,176.38,5.6692]
[1748001659641,489.16,176.65,176.24,1.991]
[1748001659935,1.8991,176.58,176.31,5.6717]
[1748001660143,5.666,176.49,176.47,4.16e-06]
[1748001660434,489.38,176.5,176.24,1.991]
[1748001660648,15.60855247,176.49,176.24,1.991]
[1748001660940,489.38,176.5,176.1,489.38]
[1748001661246,489.38,176.5,176.11,4.0036]
[1748001661247,0.04029685,176.36,176.11,4.0036]
[1748001661431,5.795,176.42,176.11,4.0036]
[1748001661632,0.03788968,176.25,176.11,4.0036]
[1748001662034,5.6736,176.26,176.16,5.6765]
[1748001662235,0.04212372,176.2,176.11,4.0036]
[1748001662436,15.60855247,176.37,176.11,4.0036]
[1748001662737,1.976,176.42,176.17,15.60855247]
[1748001662935,1.976,176.49,176.2,15.60855247]
[1748001663139,1.976,176.49,176.18,489.68]
[1748001663338,17.58455247,176.49,176.21,62.0]
[1748001663646,0.03670822,176.37,176.33,0.03605746]
[1748001663949,0.03670822,176.37,176.33,5.746e-05]
[1748001663950,0.04095642,176.37,176.33,5.746e-05]
[1748001664136,5.6708,176.34,176.33,5.746e-05]
[1748001665245,11.3508,176.34,176.33,5.746e-05]
[1748001665628,5.6748,176.22,176.08,3.7631]
[1748001665835,21.35575247,176.36,176.08,3.7631]
[1748001666144,5.7472,176.36,176.08,3.7631]
[1748001666345,15.60855247,176.33,176.08,3.7631]
[1748001666545,5.7472,176.36,176.09,62.0]
[1748001666842,5.6749,176.22,176.08,3.7631]
[1748001667035,0.03700398,176.24,175.87,489.86]
[1748001667345,5.6758,176.19,176.06,5.6795]
[1748001667645,5.7472,176.36,176.07,2.0487]
[1748001667950,5.7472,176.36,176.08,2.0457]
[1748001668154,5.7472,176.36,176.2,0.040029]
[1748001668334,5.7472,176.36,176.14,5.6771]
[1748001668631,489.86,176.53,176.14,489.86]
[1748001668838,5.9077,176.52,176.14,489.86]
[1748001669035,5.9077,176.52,176.14,505.46855247]
[1748001669238,0.04361475,176.35,176.31,0.040029]
[1748001669542,0.04361475,176.35,176.14,489.86]
[1748001669543,5.9077,176.52,176.22,5.8014]
[1748001669734,5.9077,176.52,176.22,67.8014]
[1748001669933,5.9077,176.52,176.31,0.03826851]
[1748001670133,490.08,176.63,176.28,490.08]
[1748001670330,1.9278,176.62,176.32,15.60855247]
[1748001670536,1.9278,176.62,176.29,15.60855247]
[1748001670743,1.9278,176.62,176.37,15.60855247]
[1748001670933,490.08,176.74,176.46,5.6665]
[1748001671143,1.9278,176.73,176.48,0.03702927]
[1748001671450,1.9278,176.73,176.45,490.08]
[1748001671640,17.53635247,176.73,176.45,490.08]
[1748001671841,1.9278,176.73,176.45,490.08]
[1748001672037,489.92,176.72,176.38,5.7483]
[1748001672245,489.92,176.72,176.41,15.60855247]
[1748001672440,0.03709978,176.57,176.53,0.04105339]
[1748001672946,489.92,176.72,176.44,15.60855247]
[1748001673245,0.03820239,176.57,176.53,0.03720086]
[1748001673545,0.03820239,176.57,176.38,3.8762]
[1748001673546,1.9278,176.73,176.39,2.0389]
[1748001673739,1.9278,176.73,176.46,15.60855247]
[1748001673941,1.9278,176.73,176.39,2.0389]
[1748001674149,1.9278,176.73,176.45,15.60855247]
[1748001674542,1.9278,176.73,176.39,2.0389]
[1748001674744,0.03991569,176.61,176.57,0.04295104]
[1748001674940,1.9278,176.73,176.39,2.0389]
[1748001675137,0.0426106,176.61,176.57,0.03750938]
[1748001675338,1.9278,176.73,176.39,2.0389]
[1748001675542,1.9278,176.73,176.43,15.60855247]
[1748001675750,5.6616,176.62,176.48,5.6659]
[1748001676045,1.9278,176.73,176.39,2.0389]
[1748001676243,1.9278,176.73,176.54,0.03901844]
[1748001676439,1.9278,176.73,176.62,0.04135229]
[1748001676634,0.04129506,176.69,176.66,0.04244035]
[1748001676834,3.8889,176.79,176.52,5.8051]
[1748001677045,0.04275913,176.69,176.66,0.0414626]
[1748001677249,3.8889,176.79,176.56,15.60855247]
[1748001677449,124.0,176.93,176.66,0.03975609]
[1748001677645,5.8522,176.93,176.63,1.9163]
[1748001677953,5.8522,176.93,176.63,17.52485247]
[1748001678152,5.8522,176.93,176.63,466.30485247]
[1748001678446,13.61512771,177.08,176.76,0.03615169]
[1748001678447,0.03916457,176.8,176.76,0.03615169]
[1748001678652,124.0,177.03,176.63,450.6963]
[1748001678845,4.0188,177.02,176.63,450.6963]
[1748001679149,4.0188,177.02,176.67,15.60855247]
[1748001679150,15.60855247,176.99,176.67,15.60855247]
[1748001679447,11.2981,177.01,176.72,15.60855247]
[1748001679751,0.04104855,176.85,176.68,1.9491]
[1748001679945,15.60855247,176.92,176.68,1.9491]
[1748001680151,15.60855247,176.85,176.51,15.60855247]
[1748001680448,2.0342,176.84,176.46,15.60855247]
[1748001680643,15.60855247,176.83,176.47,2.0434]
[1748001680849,0.03928393,176.67,176.63,2.353e-05]
[1748001681037,3.8679,176.74,176.47,2.0434]
[1748001681749,15.60855247,176.73,176.47,2.0434]
[1748001682046,0.03779991,176.62,176.58,0.03752483]
[1748001682246,0.03779991,176.62,176.47,2.0434]
[1748001682552,0.0365978,176.62,176.47,2.0434]
[1748001682749,3.8679,176.74,176.47,2.0434]
[1748001682750,3.8679,176.74,176.53,0.03808724]
[1748001682939,5.6639,176.55,176.53,0.03808724]
[1748001683142,15.60855247,176.7,176.38,3.7987]
[1748001683143,11.3193,176.68,176.38,3.7987]
[1748001683343,11.3193,176.68,176.33,15.60855247]
[1748001683344,124.0,176.67,176.33,15.60855247]
[1748001683538,124.0,176.67,176.34,3.7845]
[1748001683746,15.60855247,176.64,176.34,3.7845]
[1748001683946,448.5,176.63,176.34,3.7845]
[1748001684144,15.60855247,176.59,176.34,3.7845]
[1748001684352,0.04222791,176.5,176.13,448.54]
[1748001684554,0.04222791,176.5,176.14,3.7652]
[1748001684747,15.60855247,176.51,176.14,3.7652]
[1748001684949,1.9556,176.5,176.14,3.7652]
[1748001685146,3.9581,176.5,176.14,3.7652]
[1748001685446,0.03677575,176.34,176.3,0.04125923]
[1748001685750,0.04128227,176.34,176.3,0.04207491]
[1748001686451,141.51775247,176.58,176.3,0.04207491]
[1748001686754,15.60855247,176.54,176.28,3.7652]
[1748001687054,1.9556,176.57,176.28,3.7652]
[1748001687251,1.9556,176.57,176.28,19.37375247]
[1748001687446,0.0371078,176.44,176.41,0.04211309]
[1748001687645,0.03881206,176.44,176.41,0.04336883]
[1748001687945,1.9092,176.58,176.41,5.70336883]
[1748001688250,5.6654,176.5,176.36,15.60855247]
[1748001688454,3.9976,176.67,176.37,449.7723]
[1748001688850,3.9976,176.67,176.37,465.38085247]
[1748001689052,3.9976,176.67,176.5,0.03591889]
[1748001689053,0.0387249,176.54,176.5,0.03591889]
[1748001689254,5.665,176.51,176.5,0.04177191]
[1748001689561,3.9976,176.67,176.5,0.04177191]
[1748001689862,4.71450272,176.69,176.47,15.60855247]
[1748001690050,4.71450272,176.69,176.48,15.60855247]
[1748001690251,4.71450272,176.69,176.49,1.0723]
[1748001690446,0.04127088,176.61,176.57,0.04208353]
[1748001690664,0.0423776,176.61,176.57,0.03691949]
[1748001690954,5.6625,176.59,176.57,0.03691949]
[1748001691254,0.0423776,176.61,176.57,0.03691949]
[1748001692153,4.71450272,176.8,176.57,21.30547196]
[1748001692352,5.6585,176.72,176.61,5.6618]
[1748001692656,4.71450272,176.8,176.58,4.8171]
[1748001693064,0.03671545,176.71,176.67,0.04336349]
[1748001693355,0.03587718,176.71,176.67,0.04365119]
[1748001693558,5.6594,176.69,176.67,5.119e-05]
[1748001694458,0.03587718,176.71,176.67,5.119e-05]
[1748001694658,0.03587718,176.71,176.49,3.0481]
[1748001694659,0.03587718,176.71,176.24,16.85]
[1748001694958,448.58,176.85,176.33,1.30733076]
[1748001695154,11.3145,176.76,176.34,448.58]
[1748001695347,15.60855247,176.75,176.44,15.60855247]
[1748001695549,15.60855247,176.79,176.45,1.0693]
[1748001695755,0.04188801,176.61,176.58,0.03986403]
[1748001696055,0.03755871,176.61,176.58,8.808e-05]
[1748001696257,5.6625,176.59,176.58,8.808e-05]
[1748001696461,0.03755871,176.61,176.58,8.808e-05]
[1748001696861,1.9958,176.84,176.58,5.66008808]
[1748001697069,1.9958,176.84,176.57,15.60855247]
[1748001697459,1.9958,176.84,176.63,15.60855247]
[1748001697654,5.6548,176.83,176.66,15.60855247]
[1748001697861,0.04005232,176.76,176.73,0.03796765]
[1748001698056,1.8588,176.97,176.73,0.03783621]
[1748001698263,1.8588,176.97,176.72,15.60855247]
[1748001698865,1.8588,176.97,176.73,448.38]
[1748001699158,0.03602182,176.87,176.83,0.04083398]
[1748001699364,0.04184272,176.87,176.71,448.38]
[1748001699549,0.04160815,176.81,176.77,0.04200985]
[1748001699951,0.04160815,176.81,176.77,62.04200985]
[1748001700459,0.04160815,176.81,176.65,5.6604]
[1748001700663,3.8366,176.9,176.61,19.62895247]
[1748001700963,3.8366,176.9,176.72,5.6582]
[1748001701269,5.6557,176.8,176.79,0.0390082]
[1748001701460,0.03886466,176.81,176.78,5.712e-05]
[1748001701663,15.60855247,176.88,176.69,448.28]
[1748001701857,15.60855247,176.89,176.69,448.28]
[1748001702054,3.8366,176.9,176.69,448.28]
[1748001702567,0.03702388,176.81,176.78,0.04215082]
[1748001702758,0.03763105,176.81,176.78,0.04246067]
[1748001703971,5.6557,176.8,176.78,0.04246067]
[1748001704265,0.03763105,176.81,176.78,0.04246067]
[1748001704466,1.8588,176.97,176.78,62.04246067]
[1748001704661,1.8577,176.96,176.78,62.0]
[1748001704863,1.8577,176.96,176.69,463.88855247]
[1748001705465,0.04246819,176.84,176.81,0.04040474]
[1748001705668,0.04016633,176.84,176.81,0.04210483]
[1748001706370,1.8588,176.97,176.81,0.04210483]
[1748001706662,2.0206,177.07,176.75,15.60855247]
[1748001706864,2.0206,177.07,176.85,15.60855247]
[1748001707061,3.7645,177.13,176.86,450.0375]
[1748001707261,0.03913636,177.01,176.98,0.04108611]
[1748001707568,0.0426463,177.01,176.98,0.03603774]
[1748001707961,0.0426463,177.01,176.98,62.03603774]
[1748001708363,0.0426463,177.01,176.77,448.02]
[1748001708667,3.7645,177.13,176.82,15.60855247]
[1748001708862,15.60855247,177.1,176.78,1.0336]
[1748001709057,3.7645,177.13,176.82,15.60855247]
[1748001709263,0.03569857,176.99,176.96,0.03743554]
[1748001709470,0.03706571,176.99,176.96,0.04276525]
[1748001710167,0.03706571,176.99,176.96,6.525e-05]
[1748001710168,5.6503,176.97,176.96,6.525e-05]
[1748001711071,0.03706571,176.99,176.96,6.525e-05]
[1748001711972,5.6503,176.97,176.96,6.525e-05]
[1748001712368,0.03706571,176.99,176.96,6.525e-05]
[1748001712675,3.7645,177.13,176.96,6.525e-05]
[1748001712864,3.7645,177.13,176.93,447.86]
[1748001713465,5.6479,177.05,177.01,0.03667682]
[1748001713671,15.62951845,177.18,176.94,1.0299]
[1748001713870,0.042063,177.05,177.04,0.03833604]
[1748001714171,5.7585,177.15,176.93,447.86]
[1748001715076,0.04052622,177.06,177.02,0.03796233]
[1748001715272,0.04056384,177.06,177.02,0.03790805]
[1748001715572,4.71450272,177.25,177.02,5.67790805]
[1748001715773,4.71450272,177.25,177.03,3.0632]
[1748001716174,5.6433,177.19,177.03,3.0632]
[1748001716383,4.71450272,177.25,177.03,3.0632]
[1748001716673,3.462e-05,177.13,177.09,0.04083732]
[1748001716872,1.9388,177.32,177.1,447.56]
[1748001717279,8.52120272,177.4,177.23,5.642]
[1748001717280,5.6378,177.36,177.23,5.642]
[1748001717575,8.52120272,177.4,177.1,447.56]
[1748001717778,5.6386,177.34,177.1,447.56]
[1748001717978,8.52120272,177.4,177.1,447.56]
[1748001718183,0.04223577,177.24,177.2,0.04282538]
[1748001718375,8.52120272,177.4,177.21,62.0]
[1748001718576,4.71450272,177.4,177.21,62.0]
[1748001718885,4.71450272,177.4,177.26,5.6408]
[1748001719271,4.71450272,177.4,177.22,16.65774128]
[1748001719471,15.62644128,177.6,177.22,1.0313]
[1748001719767,0.03998951,177.43,177.39,0.03792822]
[1748001719972,15.62644128,177.66,177.31,447.28]
[1748001720173,3.8275,177.61,177.37,15.62644128]
[1748001720374,4.71450272,177.72,177.31,447.28]
[1748001720583,4.0138,177.71,177.47,15.62644128]
[1748001720783,4.0138,177.71,177.48,464.88964128]
[1748001720982,4.0138,177.71,177.49,447.28]
[1748001721278,4.0138,177.71,177.32,1.847]
[1748001721279,4.0138,177.71,177.41,15.62644128]
[1748001721480,5.6317,177.56,177.38,447.28]
[1748001721682,5.6317,177.56,177.34,15.62644128]
[1748001721868,15.62644128,177.69,177.35,462.90644128]
[1748001722075,4.0138,177.71,177.41,15.62644128]
[1748001722379,15.62644128,177.67,177.39,62.0]
[1748001722684,446.96,177.66,177.24,446.96]
[1748001722985,0.04195425,177.47,177.43,0.03809046]
[1748001723181,0.03893726,177.47,177.43,0.04084798]
[1748001723582,0.03893726,177.47,177.43,4.798e-05]
[1748001723583,5.6352,177.45,177.43,4.798e-05]
[1748001723979,11.2752,177.45,177.43,4.798e-05]
[1748001724177,5.6352,177.45,177.43,4.798e-05]
[1748001724680,11.2752,177.45,177.43,4.798e-05]
[1748001724878,5.6381,177.36,177.21,9.4245]
[1748001725182,15.62644128,177.41,177.16,446.96]
[1748001725583,15.62644128,177.39,177.16,446.96]
[1748001725886,1.9923,177.44,177.26,0.04031059]
[1748001725887,0.04129163,177.29,177.26,0.04031059]
[1748001726089,0.0396069,177.29,177.26,0.03617241]
[1748001726785,5.6796069,177.29,176.96,446.84]
[1748001726979,3.7897,177.28,177.02,5.6486]
[1748001727278,3.7897,177.28,176.97,2.9903]
[1748001727279,15.62644128,177.26,176.97,2.9903]
[1748001727477,15.62644128,177.26,176.98,5.6498]